Cogmind - Beta 11 *** ADVENTURER MODE // 2022.03.28 @ 01:46:28 Player: Ms Vella Result: Destroyed by O8-CKB(g) with Thermoblaster Performance ------------- Evolutions (6) 3000 Regions Visited (20) 4000 Robots Destroyed (183) 915 Value Destroyed (8652) 8652 Prototype IDs (31) 620 Alien Tech Used (0) 0 Bonus (3151) 3151 TOTAL SCORE: 20338 Bonus ------- High Alert Combat Kills 174 Follower Combat Kills 296 Entered Garrisons 400 Used RIF Installer 1000 Entered DSFs 500 Aligned with FarCom 300 Met Data Miner 300 MAIN.C Attacked Warlord 500 Friendly Fire -319 Cogmind --------- Core Integrity 0/1150 Matter 169/300 Energy 89/100 System Corruption 32% Temperature Warm (191) Movement Treading (260) Ox1 Location -4/Warlord Parts ------- > --- POWER (2) -------- (None) > --- PROPULSION (3) --- Spiked Medium Treads > --- UTILITY (11) ----- High-capacity Storage Unit Advanced Targeting Computer Improved Target Analyzer Improved Target Analyzer Graphene Brace > --- WEAPON (3) ------- (None) > --- INVENTORY (20) --- High-capacity Storage Unit Energy Well (350) Energy Well (350) Authchip [Device] Component Analysis Suite Recalibrator Peak State ------------ > --- POWER ------------ Reinforced Fission Core Light Antimatter Reactor > --- PROPULSION ------- Myomer Leg Myomer Leg Myomer Leg > --- UTILITY ---------- Advanced Cryofiber Web Advanced Coolant Injector High-capacity Storage Unit Advanced Energy Well Superbattery Advanced Targeting Computer Improved Target Analyzer Improved Target Analyzer Improved Weapon Cycler Medium Reflective Plating Graphene Brace > --- WEAPON ----------- KE Penetrator KE Penetrator Heavy Gauss Cannon > --- INVENTORY -------- Makeshift Power Source Myomer Leg Advanced Power Amplifier Advanced Coolant Injector High-capacity Storage Unit Energy Well Energy Well Authchip [Device] Component Analysis Suite Recalibrator Tesla Rifle Beamcaster Quantum Rifle Quantum Rifle Long-range Proton Cannon Long-range Proton Cannon Long-range Proton Cannon HERF Cannon Proton Missile Launcher [Rating: 126] Favorites ----------- Power Improved Ion Engine Engine Improved Ion Engine Power Core Neutrino Core Reactor Light Antimatter Reactor Propulsion Light Treads Treads Light Treads Leg VSS Leg Utility High-capacity Storage Unit Device Advanced Cryofiber Web Storage High-capacity Storage Unit Processor Improved Target Analyzer Hackware Hacking Suite Protection Light Armor Plating Weapon Compact Ion Cannon Energy Gun Heavy Particle Gun Energy Cannon Compact Ion Cannon Ballistic Gun KE Penetrator Ballistic Cannon Heavy Gauss Cannon Launcher Proton Missile Launcher Special Weapon Remote Datajack Special Melee Weapon Improved Datajack Build | -11 -10 -10 -10 -9 -8 -8 -8 -8 -7 -6 -6 -6 -6 -5 -5 -5 -4 -4 -4 -4 ------- Run | Scr Mat Min Exi Min Mat Gar Mat Gar Fac Fac Low Low Dat Pro Fac DSF Fac Upp Upp War Slots Evolved 12 | . . . . . 4 . . . 2 2 . . . . 2 . 2 . . . Power 1 | . . . . . . . . . . . . . . . 1 . . . . . Propulsion 1 | . . . . . 1 . . . . . . . . . . . . . . . Utility 9 | . . . . . 3 . . . 2 2 . . . . 1 . 1 . . . Weapon 1 | . . . . . . . . . . . . . . . . . 1 . . . Parts Attached 240 | 2 7 5 6 1 22 15 2 18 24 11 16 3 . 11 1 13 49 8 3 23 Power 20 | . 1 1 . . 2 2 . . 3 1 1 . . 2 1 . 4 1 . 1 Engine 9 | . 1 1 . . 2 . . . 3 . 1 . . . . . . . . 1 Core 9 | . . . . . . 2 . . . 1 . . . 2 1 . 3 . . . Reactor 2 | . . . . . . . . . . . . . . . . . 1 1 . . Propulsion 60 | 2 . 2 . . 5 9 2 8 5 1 2 1 . . . 4 10 3 2 4 Treads 22 | 2 . 1 . . 5 6 . . . . . . . . . 3 1 1 . 3 Leg 38 | . . 1 . . . 3 2 8 5 1 2 1 . . . 1 9 2 2 1 Wheel . | . . . . . . . . . . . . . . . . . . . . . Hover . | . . . . . . . . . . . . . . . . . . . . . Flight . | . . . . . . . . . . . . . . . . . . . . . Utility 86 | . 4 1 3 . 9 4 . 5 10 7 8 2 . 3 . 5 16 2 1 6 Device 38 | . . . 1 . . 3 . 2 5 4 4 1 . 2 . 4 8 1 1 2 Storage 11 | . 2 . 1 . 1 . . . . 2 2 . . . . 1 1 . . 1 Processor 12 | . . . . . 2 . . 1 3 1 . 1 . . . . 4 . . . Hackware 5 | . . . . . 1 . . 2 2 . . . . . . . . . . . Protection 20 | . 2 1 1 . 5 1 . . . . 2 . . 1 . . 3 1 . 3 Artifact . | . . . . . . . . . . . . . . . . . . . . . Weapon 74 | . 2 1 3 1 6 . . 5 6 2 5 . . 6 . 4 19 2 . 12 Energy Gun 14 | . . . 1 . 3 . . 2 2 . . . . . . . 2 . . 4 Energy Cannon 32 | . 1 . 1 . 1 . . . 3 2 5 . . 3 . 2 9 . . 5 Ballistic Gun 18 | . 1 1 1 . 2 . . 1 . . . . . 2 . . 8 . . 2 Ballistic Cannon 2 | . . . . 1 . . . . . . . . . . . . . 1 . . Launcher 5 | . . . . . . . . . . . . . . 1 . 2 . 1 . 1 Special Weapon 1 | . . . . . . . . . 1 . . . . . . . . . . . Impact Weapon . | . . . . . . . . . . . . . . . . . . . . . Slashing Weapon . | . . . . . . . . . . . . . . . . . . . . . Piercing Weapon . | . . . . . . . . . . . . . . . . . . . . . Special Melee Weapon 2 | . . . . . . . . 2 . . . . . . . . . . . . Unidentified Prototypes 8 | . . . 3 . 2 . . . 1 1 . . . . . 1 . . . . Corrupted Parts 20 | . . . . . 1 . . . 2 . . . . . . 1 10 1 1 4 System Corruption 103 | . . . . . 3 . . . 6 . . . . . . 1 50 6 9 28 Parts Lost 78 | . 1 1 . . 5 7 . 2 4 2 13 1 . 3 . 1 5 1 2 30 Power 9 | . . . . . 1 2 . . . . 1 . . 1 . . 1 . . 3 Propulsion 19 | . . 1 . . . 5 . 1 . 1 3 . . 1 . . 1 . 1 5 Utility 28 | . . . . . 2 . . 1 3 . 7 1 . 1 . 1 1 . 1 10 Weapon 22 | . 1 . . . 2 . . . 1 1 2 . . . . . 2 1 . 12 Highest Loss Streak 18 | . 1 1 . . 3 4 . 1 3 1 8 1 . 2 . 1 2 1 1 18 To Critical Strikes . | . . . . . . . . . . . . . . . . . . . . . Average Slot Usage (%) 95 | . 92 98 99 100 99 98 100 99 98 95 84 89 100 92 76 88 94 99 99 73 Engine 5 | . 14 14 14 14 9 4 . . 5 5 4 6 6 . . . . . . 1 Core 2 | . . . . . . 3 9 9 1 . . . . 5 11 11 4 5 5 1 Treads 10 | . 28 25 28 28 27 14 . . . . . . . . . 13 2 . . 3 Leg 10 | . . . . . . 12 27 27 22 19 7 13 20 17 11 2 12 14 14 6 Device 13 | . . . . . . 6 9 14 23 23 19 26 26 23 17 24 21 20 21 12 Storage 16 | . 14 14 14 14 9 18 18 10 7 8 30 29 26 23 17 16 15 15 15 13 Processor 5 | . . . . . 12 9 9 2 9 16 1 . 6 3 . . 8 15 15 15 Hackware 3 | . . . . . 8 9 9 17 10 5 . . . . . . . . . . Protection 5 | . 7 14 13 14 14 2 . . . . 4 . . 2 5 5 6 5 5 3 Energy Gun 1 | . 2 . . . 4 9 9 . 2 . . . . . . . . . . 1 Energy Cannon 8 | . 8 14 13 14 1 . . . 7 12 12 13 13 10 . 4 10 . . 4 Ballistic Gun 7 | . 17 14 14 14 7 9 9 14 2 . . . . 2 11 1 3 12 10 3 Naked Turns . | . . . . . . . . . . . . . . . . . . . . . Heaviest Build 130 | 13 52 56 56 57 61 58 56 56 68 78 76 70 69 91 105 118 130 120 120 113 Greatest Support 93 | 40 40 40 40 40 60 63 35 40 45 45 44 60 60 60 45 93 84 70 75 84 Greatest Overweight (x) 5 | . 1 2 1 1 1 3 1 3 3 1 4 1 1 2 2 3 2 5 2 3 Average Overweight (x) 1 | . . 1 1 1 . . 1 1 1 1 1 1 1 1 2 1 1 1 1 . Largest Inventory Capacity 20 | 8 20 20 20 20 20 20 20 20 20 20 20 20 20 20 20 20 20 20 20 20 Average Capacity 19 | 8 16 20 20 20 20 20 20 20 20 20 20 20 20 20 20 20 20 20 20 20 Most Carried 20 | 6 6 13 17 20 20 20 20 20 20 20 20 20 19 20 19 20 20 20 20 19 Average Carried 16 | 4 4 8 15 17 18 18 19 19 19 19 18 18 19 19 19 19 19 19 19 12 Final Capacity 20 | 8 20 20 20 20 20 20 20 20 20 20 20 20 20 20 20 20 20 20 20 20 Final Carried 20 | 2 5 13 17 20 20 19 20 19 20 20 18 19 19 20 19 20 19 20 19 6 Class Distribution -------------------- 52% | Scavenger-Mutant 22% | Mutant 14% | Scavenger-Gunner 5% | Skirmisher Dominant Class ---------------- Mutant | -10/Materials Mutant | -10/Mines Scavenger-Mutant | -10/Exiles Scavenger-Mutant | -9/Mines Scavenger-Mutant | -8/Materials Scavenger-Mutant | -8/Garrison Scavenger-Mutant | -8/Materials Scavenger-Mutant | -8/Garrison Mutant | -7/Factory Skirmisher | -6/Factory Scavenger-Mutant | -6/Lower Caves Scavenger-Mutant | -6/Lower Caves Scavenger-Mutant | -6/Data Miner Scavenger-Mutant | -5/Proximity Caves Scavenger-Mutant | -5/Factory Mutant | -5/DSF Scavenger-Gunner | -4/Factory Scavenger-Gunner | -4/Upper Caves Scavenger-Gunner | -4/Upper Caves Scavenger-Mutant | -4/Warlord Resources | -11 -10 -10 -10 -9 -8 -8 -8 -8 -7 -6 -6 -6 -6 -5 -5 -5 -4 -4 -4 -4 ----------- Run | Scr Mat Min Exi Min Mat Gar Mat Gar Fac Fac Low Low Dat Pro Fac DSF Fac Upp Upp War Matter Collected 5080 | 200 237 168 30 136 503 369 122 367 376 66 397 20 . 195 . 229 956 272 325 112 Remotely . | . . . . . . . . . . . . . . . . . . . . . Salvage Created 9101 | . 302 141 . 243 774 626 445 311 628 205 599 52 . 354 . 693 2155 498 298 777 Parts 423 | . 20 6 . 17 45 20 28 22 26 10 25 7 . 16 . 27 94 12 15 33 Haulers Intercepted . | . . . . . . . . . . . . . . . . . . . . . Recyclers Shooed 5 | . . 2 . . 1 . 1 . . . . . . . . . 1 . . . Parts Field Recycled . | . . . . . . . . . . . . . . . . . . . . . Retrieved Matter . | . . . . . . . . . . . . . . . . . . . . . Parts Self-Destructed 81 | . . . . . . . . . . . 24 7 . 30 . . . 4 16 . Prevented 14 | . . . . . . . . . . . 3 . . 3 . . . 8 . . Kills | -11 -10 -10 -10 -9 -8 -8 -8 -8 -7 -6 -6 -6 -6 -5 -5 -5 -4 -4 -4 -4 ------- Run | Scr Mat Min Exi Min Mat Gar Mat Gar Fac Fac Low Low Dat Pro Fac DSF Fac Upp Upp War Combat Hostiles Destroyed 171 | . 10 4 . 6 19 15 9 9 10 2 13 1 . 10 . 7 33 6 8 9 Guns 76 | . 5 1 . 2 6 15 9 9 4 . . . . 1 . 1 13 3 5 2 Cannons 65 | . 2 3 . 4 13 . . . 5 2 11 1 . 6 . . 12 . 3 3 AOE 11 | . 3 . . . . . . . 1 . . . . 1 . 4 . 2 . . Classes Destroyed 19 | . 2 . . . 5 . 2 2 3 . 1 . . . . 2 1 . 1 . Worker 2 | . . . . . . . 1 . . . . . . . . . 1 . . . Builder 1 | . . . . . . . . . . . . . . . . . 1 . . . Recycler 5 | . . . . . 1 . 1 . 1 1 . . . . . . 1 . . . Mechanic 1 | . . . . . 1 . . . . . . . . . . . . . . . Operator 1 | . . . . . 1 . . . . . . . . . . . . . . . Watcher 1 | . . . . . . . . . 1 . . . . . . . . . . . Swarmer 53 | . 4 2 . . 6 4 3 3 2 1 6 . . 8 . . 9 . 5 . Grunt 53 | . 6 2 . 6 7 11 2 3 3 . 3 . . . . 3 3 4 . . Brawler 3 | . . . . . . . 1 . 1 . . . . . . . 1 . . . Duelist 1 | . . . . . . . . . 1 . . . . . . . . . . . Protector 1 | . . . . . . . . 1 . . . . . . . . . . . . Sentry 13 | . . . . . 5 . 2 . . 1 1 . . 1 . . 2 . 1 . Demolisher 1 | . . . . . . . . 1 . . . . . . . . . . . . Specialist 2 | . . . . . . . . . . . . . . . . 2 . . . . Hunter 17 | . . . . . 1 . 1 1 . . 2 1 . . . 1 8 2 . . Programmer 13 | . . . . . . . . . 3 . . . . . . . 9 . 1 . Heavy 2 | . . . . . . . . . . . . . . . . 1 1 . . . Behemoth 2 | . . . . . . . . . . . 1 . . 1 . . . . . . Thug 5 | . . . . . . . . . 1 . . . . . . . . . . 4 Savage 1 | . . . . . . . . . . . . . . . . . . . . 1 Butcher 1 | . . . . . . . . . . . . . . . . . . . . 1 Marauder 2 | . . . . . . . . . . . . . . . . . . . . 2 Mutant 2 | . . . . . . . . . . . . . . . . . . . 1 1 Best Kill Streak 7 | . 3 2 . 3 6 7 6 4 4 2 5 1 . 3 . 3 7 4 5 5 Combat Bots Only 7 | . 3 2 . 3 5 7 4 4 4 1 5 1 . 3 . 3 7 4 5 5 Max Kills in Single Turn 2 | . 2 1 . 1 1 2 2 2 1 1 1 1 . 1 . 1 2 1 2 1 Gunslinging 1 | . . . . . . 1 . 1 . . . . . . . . 1 . . . Exploded 2 | . 2 . . . . . . . 1 . . . . 1 . 1 . 1 . . Melee . | . . . . . . . . . . . . . . . . . . . . . Uniques/NPCs Destroyed . | . . . . . . . . . . . . . . . . . . . . . Combat | -11 -10 -10 -10 -9 -8 -8 -8 -8 -7 -6 -6 -6 -6 -5 -5 -5 -4 -4 -4 -4 -------- Run | Scr Mat Min Exi Min Mat Gar Mat Gar Fac Fac Low Low Dat Pro Fac DSF Fac Upp Upp War Damage Taken 13923 | . 418 94 . 147 890 749 204 559 792 132 1809 72 . 487 . 199 2618 601 240 3912 Core 2297 | . 36 . . 29 133 41 64 105 106 17 511 . . 89 . 10 371 68 35 682 Absorbed by Shields 289 | . . . . . . . . 104 . . . . . . . . . 165 20 . Redirected to Shielding 64 | . . . . . 64 . . . . . . . . . . . . . . . Regen/Repaired (Parts) 139 | . . . . . . . . . 139 . . . . . . . . . . . Core Remaining (%) 70 | 100 . . . 74 . . . 37 84 . . . . 27 . 99 . . . . Volleys Fired 504 | . 33 14 . 14 62 36 27 33 51 5 38 2 . 21 . 8 84 20 19 37 Largest 3 | . 2 2 . 2 2 2 2 2 2 2 2 2 . 2 . 2 3 3 3 3 Hottest 276 | . 80 80 . 83 113 80 80 80 180 180 180 180 . 180 . 85 243 99 127 276 Shots Fired 1025 | . 58 30 1 28 118 68 54 64 82 8 65 4 . 37 . 16 234 49 36 73 Gun 553 | . 48 15 . 14 69 68 54 64 41 . . . . 6 . 4 73 45 18 34 Cannon 437 | . 10 15 1 14 49 . . . 34 8 65 4 . 26 . . 161 . 18 32 Launcher 28 | . . . . . . . . . . . . . . 5 . 12 . 4 . 7 Special 7 | . . . . . . . . . 7 . . . . . . . . . . . Kinetic 464 | . 36 15 . 14 99 36 27 62 17 . . . . 6 . 4 56 45 36 11 Thermal 277 | . 10 15 1 14 . 32 27 2 34 8 65 4 . 26 . . 17 . . 22 Explosive . | . . . . . . . . . . . . . . . . . . . . . Electromagnetic 277 | . 12 . . . 19 . . . 24 . . . . 5 . 12 161 4 . 40 Robot Hit Streak 49 | . 13 8 2 10 49 19 21 24 26 10 21 2 . 8 . 10 34 31 23 21 Robot Miss Streak 3 | . 2 1 . 1 2 2 1 2 2 . 2 1 . 3 . 1 3 2 1 1 Penetration Max 1 | . . . . . . . . . . . . . . . . . 1 1 1 1 Secondary Targets 12 | . . . . . . 4 2 2 . . . . . . . . 3 . . 1 Max Gunslinging Chain 1 | . . . . . . 1 1 1 . . . . . . . . 1 . . 1 Shots Hit Robots 783 | . 41 18 1 21 101 54 38 51 59 8 49 2 . 20 . 12 179 43 22 64 Core Hits 328 | . 17 7 . 9 37 26 19 18 32 3 17 2 . 11 . 21 66 17 11 15 Critical Kills 8 | . . . . . . 1 . . 1 . 1 . . 2 . 1 2 . . . Critical Parts Destroyed 16 | . . 1 . . 1 . . . . . . . . . . . 6 3 1 4 Critical Strikes 41 | . 2 1 . . 5 3 . . 1 . 1 . . 2 . 1 12 3 2 8 Burn 4 | . . . . . . 2 . . . . . . . . . . 1 . . 1 Meltdown 3 | . . . . . . . . . . . 1 . . 2 . . . . . . Destroy 21 | . . 1 . . 1 1 . . 1 . . . . . . 1 8 3 1 4 Blast 5 | . . . . . 4 . . . . . . . . . . . . . 1 . Corrupt 8 | . 2 . . . . . . . . . . . . . . . 3 . . 3 Melee Attacks 6 | . . . . . . . . 6 . . . . . . . . . . . . Impact . | . . . . . . . . . . . . . . . . . . . . . Slashing . | . . . . . . . . . . . . . . . . . . . . . Piercing . | . . . . . . . . . . . . . . . . . . . . . Sneak Attacks . | . . . . . . . . . . . . . . . . . . . . . Combat Hostiles . | . . . . . . . . . . . . . . . . . . . . . Follow-up Attacks . | . . . . . . . . . . . . . . . . . . . . . Damage Inflicted 19199 | . 653 215 18 363 1812 984 773 724 1559 394 2061 55 . 747 . 1039 4308 1159 738 1597 Guns 8012 | . 319 106 . 135 867 984 760 724 496 . . . . 121 . 74 1392 807 459 768 Cannons 9022 | . 106 107 18 228 842 . . . 941 385 2061 55 . 461 . . 2794 . 279 745 Explosions 2100 | . 228 . . . 87 . . . 122 . . . . 165 . 965 97 352 . 84 Melee . | . . . . . . . . . . . . . . . . . . . . . Ramming 65 | . . 2 . . 16 . 13 . . 9 . . . . . . 25 . . . Kinetic 6738 | . 194 106 . 135 1424 483 359 708 240 . . . . 121 . 74 1095 807 738 254 Thermal 6557 | . 334 107 18 228 87 501 401 16 941 385 2061 55 . 461 . 86 382 . . 494 Explosive 122 | . . . . . . . . . 122 . . . . . . . . . . . Electromagnetic 5717 | . 125 . . . 285 . . . 256 . . . . 165 . 879 2806 352 . 849 Impact . | . . . . . . . . . . . . . . . . . . . . . Slashing . | . . . . . . . . . . . . . . . . . . . . . Piercing . | . . . . . . . . . . . . . . . . . . . . . Highest Corruption 75 | . 1 1 1 1 3 3 3 3 14 . . . . . . 1 57 63 74 75 Average Corruption 15 | . 1 1 1 1 3 3 3 3 12 . . . . . . 1 43 59 68 30 Corruption Purged . | . . . . . . . . . . . . . . . . . . . . . Corruption Blocked 4 | . . . . . . . . . 4 . . . . . . . . . . . Effects 347 | . 7 13 11 5 2 21 12 15 52 . . . . . . 4 107 46 37 15 Message Errors 77 | . 2 3 2 1 1 5 4 3 13 . . . . . . 1 23 10 6 3 Matter Fused 76 | . 3 2 5 1 . 5 3 4 10 . . . . . . 2 19 11 8 3 Heat Flow Errors 36 | . 1 2 . 1 . 5 1 1 5 . . . . . . . 10 4 5 1 Energy Discharges 40 | . . 3 . . 1 1 2 3 5 . . . . . . 1 11 8 3 2 Parts Rejected 3 | . . . . . . . . . 1 . . . . . . . 1 . 1 . Data Loss (minor) 41 | . . 1 3 1 . 4 1 2 6 . . . . . . . 13 4 3 3 Data Loss (major) 17 | . 1 . . . . . . 1 4 . . . . . . . 5 2 3 1 Misfires 17 | . . 2 1 . . . . 1 3 . . . . . . . 6 2 1 1 Alerts 8 | . . . . 1 . . 1 . 3 . . . . . . . 1 1 1 . Misdirections 1 | . . . . . . . . . . . . . . . . . . . . 1 Weapon Failures 31 | . . . . . . 1 . . 2 . . . . . . . 18 4 6 . Overload Shots 45 | . . . . . . . . . 26 6 13 . . . . . . . . . Overflow Damage 283 | . . . . . 3 . . . 106 83 62 . . 6 . 3 8 . 12 . Projectiles 269 | . . . . . . . . . 99 83 62 . . 5 . . 8 . 12 . Explosions 14 | . . . . . 3 . . . 7 . . . . 1 . 3 . . . . Melee . | . . . . . . . . . . . . . . . . . . . . . Knockbacks 9 | . . . . . 5 . 1 . . 1 . . . . . . 1 . 1 . Impact 3 | . . . . . . . 1 . . 1 . . . . . . 1 . . . Kinetic 6 | . . . . . 5 . . . . . . . . . . . . . 1 . Secondary . | . . . . . . . . . . . . . . . . . . . . . Self-Inflicted Damage 185 | . . . . . . . . . 110 . . . . 19 . . 56 . . . Shots 6 | . . . . . . . . . 2 . . . . 3 . . 1 . . . Rammed 3 | . . 1 . . 2 . . . . . . . . . . . . . . . Targets Rammed 9 | . . 1 . . 2 . 3 . . 2 . . . . . . 1 . . . Kicked 6 | . . . . . . . 3 . . 2 . . . . . . 1 . . . Crushed . | . . . . . . . . . . . . . . . . . . . . . Highest Temperature 1159 | . 376 179 30 279 244 396 135 93 482 140 648 . . . . 1159 794 193 190 363 Average Temperature 131 | . 124 65 20 123 66 135 10 22 148 72 201 . . . . 194 179 85 85 109 Received Heat Transfer 3024 | . 225 75 . 105 504 576 90 237 189 . 291 . . . . 36 84 163 50 399 Effects 31 | . 2 . . . 2 5 . . . . 7 . . . . 8 7 . . . Shutdowns 2 | . . . . . . . . . . . 1 . . . . 1 . . . . Energy Bleed 3 | . . . . . . 1 . . . . 1 . . . . . 1 . . . Interference 10 | . 1 . . . 2 1 . . . . 2 . . . . 2 2 . . . Matter Decay 5 | . 1 . . . . 1 . . . . . . . . . 2 1 . . . Short Circuit 5 | . . . . . . 2 . . . . . . . . . 1 2 . . . Damage (minor) 1 | . . . . . . . . . . . . . . . . 1 . . . . Damage (major) 3 | . . . . . . . . . . . 2 . . . . 1 . . . . Damage (core) 2 | . . . . . . . . . . . 1 . . . . . 1 . . . Siege Activations . | . . . . . . . . . . . . . . . . . . . . . Robots Corrupted 16 | . . . . . . . . . . . . . . . . 3 8 1 . 4 Combat Hostiles 15 | . . . . . . . . . . . . . . . . 2 8 1 . 4 Parts Fried 44 | . . . . . 2 . . . 1 . . . . . . 7 25 2 . 7 Impact Corruptions . | . . . . . . . . . . . . . . . . . . . . . Robots Melted 5 | . . . . . . . . . . . 2 . . 2 . 1 . . . . Combat Hostiles 4 | . . . . . . . . . . . 2 . . 2 . . . . . . Parts Melted 23 | . 1 1 . . . 1 1 . 2 . 11 . . 2 . . 2 . . 2 Heat Transferred 8712 | . 422 222 37 481 100 1110 777 37 848 374 2019 74 . 629 . 150 655 . . 777 Parts Sabotaged . | . . . . . . . . . . . . . . . . . . . . . Parts Stolen . | . . . . . . . . . . . . . . . . . . . . . Parts Stripped . | . . . . . . . . . . . . . . . . . . . . . Power Chain Reactions 8 | . 3 . . . 1 . . . . . . . . . . 2 2 . . . Missiles Intercepted . | . . . . . . . . . . . . . . . . . . . . . Alert | -11 -10 -10 -10 -9 -8 -8 -8 -8 -7 -6 -6 -6 -6 -5 -5 -5 -4 -4 -4 -4 ------- Run | Scr Mat Min Exi Min Mat Gar Mat Gar Fac Fac Low Low Dat Pro Fac DSF Fac Upp Upp War Peak Influence 619 | . 172 94 . 70 350 619 363 373 199 122 . . . . . 191 482 . . . Initial 259 | . . 33 . . . 119 259 122 169 43 . . . . . . 86 . . . Average 154 | . 46 24 . 46 201 453 154 272 64 32 . . . . . 142 280 . . . Maximum Alert Level 2 | . . . . . 1 2 1 1 . . . . . . . . 2 . . . Low Security (%) 67 | 100 100 100 . 100 36 5 59 23 100 100 . . . . 100 100 24 . . . Level 1 24 | . . . . . 63 40 40 76 . . . . . . . . 61 . . . Level 2 7 | . . . . . . 53 . . . . . . . . . . 14 . . . Level 3 . | . . . . . . . . . . . . . . . . . . . . . Level 4 . | . . . . . . . . . . . . . . . . . . . . . Level 5 . | . . . . . . . . . . . . . . . . . . . . . High Security . | . . . . . . . . . . . . . . . . . . . . . Max Security . | . . . . . . . . . . . . . . . . . . . . . Sterilizations 1 | . . . . . . . . . . . . . . . . 1 . . . . Squads Dispatched 22 | . 1 . . . 4 . 3 . 3 1 . . . . . 2 8 . . . Investigation 2 | . 1 . . . . . 1 . . . . . . . . . . . . . Extermination 9 | . . . . . . . . . 3 1 . . . . . . 5 . . . Reinforcement 10 | . . . . . 4 . 1 . . . . . . . . 2 3 . . . Assault . | . . . . . . . . . . . . . . . . . . . . . Garrison 1 | . . . . . . . 1 . . . . . . . . . . . . . Intercept . | . . . . . . . . . . . . . . . . . . . . . Searches Triggered . | . . . . . . . . . . . . . . . . . . . . . Construction Impeded 2 | . . . . . . . . . . . . . . . . . 2 . . . Haulers Reinforced . | . . . . . . . . . . . . . . . . . . . . . Active Scanning Responses . | . . . . . . . . . . . . . . . . . . . . . Cargo Convoy Interrupts 1 | . . . . . . . . . 1 . . . . . . . . . . . Stealth | -11 -10 -10 -10 -9 -8 -8 -8 -8 -7 -6 -6 -6 -6 -5 -5 -5 -4 -4 -4 -4 --------- Run | Scr Mat Min Exi Min Mat Gar Mat Gar Fac Fac Low Low Dat Pro Fac DSF Fac Upp Upp War Distress Signals 5 | . 1 . . . 1 . 2 . 1 . . . . . . . . . . . Communications Jammed . | . . . . . . . . . . . . . . . . . . . . . Distress Signals . | . . . . . . . . . . . . . . . . . . . . . Times Spotted 249 | . 25 8 . 6 30 15 15 16 13 6 13 1 . 18 . 8 38 7 8 22 Peak Tracking Total 12 | . 4 3 . 3 6 7 7 6 4 3 5 1 . 5 . 3 6 4 5 12 Tactical Retreats 10 | . . 2 . . 4 . 1 . . . . . . . . . 2 . . 1 Traps | -11 -10 -10 -10 -9 -8 -8 -8 -8 -7 -6 -6 -6 -6 -5 -5 -5 -4 -4 -4 -4 ------- Run | Scr Mat Min Exi Min Mat Gar Mat Gar Fac Fac Low Low Dat Pro Fac DSF Fac Upp Upp War Traps Triggered 20 | . 2 . . . . 2 1 6 2 . . . . . . 1 . . . 6 Indirectly 1 | . . . . . . . . . . . . . . . . . . . . 1 Trap Hack Attempts . | . . . . . . . . . . . . . . . . . . . . . Triggered . | . . . . . . . . . . . . . . . . . . . . . Disarmed . | . . . . . . . . . . . . . . . . . . . . . Reprogrammed . | . . . . . . . . . . . . . . . . . . . . . Reused . | . . . . . . . . . . . . . . . . . . . . . Traps Extracted . | . . . . . . . . . . . . . . . . . . . . . Installed . | . . . . . . . . . . . . . . . . . . . . . Triggered 6 | . . . . . . . . . 2 . 1 . . 3 . . . . . . Machines | -11 -10 -10 -10 -9 -8 -8 -8 -8 -7 -6 -6 -6 -6 -5 -5 -5 -4 -4 -4 -4 ---------- Run | Scr Mat Min Exi Min Mat Gar Mat Gar Fac Fac Low Low Dat Pro Fac DSF Fac Upp Upp War Machines Disabled 26 | . 1 1 . . 1 1 . 2 10 . . . . . . . 10 . . . Max in Single Turn 5 | . 1 1 . . 1 1 . 1 5 . . . . . . . 5 . . . Garrison Relay 3 | . . . . . . 1 . 2 . . . . . . . . . . . . Machines Sabotaged . | . . . . . . . . . . . . . . . . . . . . . Garrisons Compromised 1 | . . . . . . . . . 1 . . . . . . . . . . . Overloaded Fab Kills . | . . . . . . . . . . . . . . . . . . . . . Hacking | -11 -10 -10 -10 -9 -8 -8 -8 -8 -7 -6 -6 -6 -6 -5 -5 -5 -4 -4 -4 -4 --------- Run | Scr Mat Min Exi Min Mat Gar Mat Gar Fac Fac Low Low Dat Pro Fac DSF Fac Upp Upp War Machines Accessed 30 | . 6 . 1 . 2 . 6 . 2 2 1 2 4 . 1 . 2 . 1 . Terminals 16 | . 5 . . . 1 . 5 . 1 2 . . . . 1 . 1 . . . Fabricators 1 | . . . . . . . . . 1 . . . . . . . . . . . Repair Stations 1 | . . . . . . . . . . . . . . . . . 1 . . . Recycling Units 1 | . 1 . . . . . . . . . . . . . . . . . . . Scanalyzers . | . . . . . . . . . . . . . . . . . . . . . Garrison Access 2 | . . . . . 1 . 1 . . . . . . . . . . . . . Total Hacks 112 | . 23 . 23 . 3 . 15 . 2 3 1 9 27 . 1 . 4 . 1 . Successful 100 | . 17 . 23 . 2 . 13 . 2 2 1 9 27 . 1 . 2 . 1 . Failed 11 | . 5 . . . 1 . 2 . . 1 . . . . . . 2 . . . Catastrophic . | . . . . . . . . . . . . . . . . . . . . . Database Lockouts 1 | . 1 . . . . . . . . . . . . . . . . . . . Manual 22 | . 13 . 1 . 1 . 5 . 1 1 . . . . . . . . . . Terminals 44 | . 21 . . . 2 . 14 . 1 3 . . . . 1 . 2 . . . Fabricators 1 | . . . . . . . . . 1 . . . . . . . . . . . Repair Stations 2 | . . . . . . . . . . . . . . . . . 2 . . . Recycling Units 2 | . 2 . . . . . . . . . . . . . . . . . . . Scanalyzers . | . . . . . . . . . . . . . . . . . . . . . Garrison Access 2 | . . . . . 1 . 1 . . . . . . . . . . . . . Terminal Hacks 84 | . 11 . 23 . 1 . 8 . . 1 1 9 27 . 1 . 1 . 1 . Record 43 | . 1 . 23 . . . . . . . . 8 11 . . . . . . . Part Schematic 9 | . . . . . . . . . . . . . 9 . . . . . . . Robot Schematic 4 | . . . . . . . . . . . . . 4 . . . . . . . Robot Analysis 1 | . 1 . . . . . . . . . . . . . . . . . . . Prototype ID Bank 13 | . 7 . . . 1 . 1 . . . . . 3 . . . 1 . . . Open Door 3 | . . . . . . . . . . . 1 1 . . . . . . 1 . Open DSF 2 | . . . . . . . . . . 1 . . . . 1 . . . . . Alert Level 1 | . . . . . . . 1 . . . . . . . . . . . . . Unreport Threat 2 | . . . . . . . 2 . . . . . . . . . . . . . Patrol Status 1 | . . . . . . . 1 . . . . . . . . . . . . . Transport Status 1 | . . . . . . . 1 . . . . . . . . . . . . . Recall Investigation 1 | . . . . . . . 1 . . . . . . . . . . . . . Hauler Manifests 1 | . . . . . . . 1 . . . . . . . . . . . . . Registered Components 1 | . 1 . . . . . . . . . . . . . . . . . . . Zone Layout 1 | . 1 . . . . . . . . . . . . . . . . . . . Fabricator Hacks 1 | . . . . . . . . . 1 . . . . . . . . . . . Build 1 | . . . . . . . . . 1 . . . . . . . . . . . Repair Station Hacks 1 | . . . . . . . . . . . . . . . . . 1 . . . Scan Component 1 | . . . . . . . . . . . . . . . . . 1 . . . Recycling Unit Hacks 2 | . 2 . . . . . . . . . . . . . . . . . . . Report Inventory 1 | . 1 . . . . . . . . . . . . . . . . . . . Retrieve Components 1 | . 1 . . . . . . . . . . . . . . . . . . . Scanalyzer . | . . . . . . . . . . . . . . . . . . . . . Garrison Access Hacks 2 | . . . . . 1 . 1 . . . . . . . . . . . . . Unlock Access 2 | . . . . . 1 . 1 . . . . . . . . . . . . . Unauthorized Hacks 10 | . 4 . . . . . 4 . 1 1 . . . . . . . . . . Terminals 10 | . 4 . . . . . 4 . 1 1 . . . . . . . . . . Botnet 10 | . 4 . . . . . 4 . 1 1 . . . . . . . . . . Fabricators . | . . . . . . . . . . . . . . . . . . . . . Repair Stations . | . . . . . . . . . . . . . . . . . . . . . Recycling Units . | . . . . . . . . . . . . . . . . . . . . . Scanalyzers . | . . . . . . . . . . . . . . . . . . . . . Garrison Access . | . . . . . . . . . . . . . . . . . . . . . Data Cores Recovered . | . . . . . . . . . . . . . . . . . . . . . Used . | . . . . . . . . . . . . . . . . . . . . . Hacking Detections 16 | . 5 . . . 2 . 4 . 2 1 . . . . 1 . 1 . . . Full Trace Events . | . . . . . . . . . . . . . . . . . . . . . Feedback Events . | . . . . . . . . . . . . . . . . . . . . . Feedback Blocked . | . . . . . . . . . . . . . . . . . . . . . Robot Schematics Acquired 4 | . . . . . . . . . . . . . 4 . . . . . . . Robots Built . | . . . . . . . . . . . . . . . . . . . . . Authchips . | . . . . . . . . . . . . . . . . . . . . . Time . | . . . . . . . . . . . . . . . . . . . . . Total Robot Build Rating . | . . . . . . . . . . . . . . . . . . . . . Part Schematics Acquired 9 | . . . . . . . . . . . . . 9 . . . . . . . Parts Built 1 | . . . . . . . . . 1 . . . . . . . . . . . Authchips . | . . . . . . . . . . . . . . . . . . . . . Time 58 | . . . . . . . . . 58 . . . . . . . . . . . Total Part Build Rating 7 | . . . . . . . . . 7 . . . . . . . . . . . Parts Repaired . | . . . . . . . . . . . . . . . . . . . . . Time . | . . . . . . . . . . . . . . . . . . . . . Parts Recycled . | . . . . . . . . . . . . . . . . . . . . . Recycled Matter . | . . . . . . . . . . . . . . . . . . . . . Retrieved Matter . | . . . . . . . . . . . . . . . . . . . . . Retrieved Components 10 | . 10 . . . . . . . . . . . . . . . . . . . Parts Scanalyzed . | . . . . . . . . . . . . . . . . . . . . . Part Schematics Acquired . | . . . . . . . . . . . . . . . . . . . . . Parts Damaged . | . . . . . . . . . . . . . . . . . . . . . Bothacking | -11 -10 -10 -10 -9 -8 -8 -8 -8 -7 -6 -6 -6 -6 -5 -5 -5 -4 -4 -4 -4 ------------ Run | Scr Mat Min Exi Min Mat Gar Mat Gar Fac Fac Low Low Dat Pro Fac DSF Fac Upp Upp War Used RIF Installer 2 | . . . . . . 1 . 1 . . . . . . . . . . . . Command Fork 1 | . . . . . . . . 1 . . . . . . . . . . . . Robots Hacked 9 | . . . . . . . . 4 5 . . . . . . . . . . . Non-combat 5 | . . . . . . . . . 5 . . . . . . . . . . . Combat 4 | . . . . . . . . 4 . . . . . . . . . . . . Robot Hacks Applied 9 | . . . . . . . . 4 5 . . . . . . . . . . . deconstruct_machine 1 | . . . . . . . . . 1 . . . . . . . . . . . map_walls 1 | . . . . . . . . . 1 . . . . . . . . . . . link_fov 1 | . . . . . . . . . 1 . . . . . . . . . . . spike_heat 1 | . . . . . . . . 1 . . . . . . . . . . . . formatsys_low 1 | . . . . . . . . . 1 . . . . . . . . . . . formatsys_high 4 | . . . . . . . . 3 1 . . . . . . . . . . . Relay Couplers Released 13 | . . . . . . 5 . 8 . . . . . . . . . . . . Machine Destruction 13 | . . . . . . 5 . 8 . . . . . . . . . . . . Attached 4 | . . . . . . . . 2 2 . . . . . . . . . . . Fabnet Peak Effective % . | . . . . . . . . . . . . . . . . . . . . . Robots Rewired . | . . . . . . . . . . . . . . . . . . . . . Allies Hacked . | . . . . . . . . . . . . . . . . . . . . . Hacks Repelled . | . . . . . . . . . . . . . . . . . . . . . Allies | -11 -10 -10 -10 -9 -8 -8 -8 -8 -7 -6 -6 -6 -6 -5 -5 -5 -4 -4 -4 -4 -------- Run | Scr Mat Min Exi Min Mat Gar Mat Gar Fac Fac Low Low Dat Pro Fac DSF Fac Upp Upp War Total Allies 12 | . . 2 . . . . . 3 6 . . . . 1 . . . . . . Largest Group 3 | . . 2 2 . . . . 2 3 1 1 . . 1 1 1 . . . . Highest-Rated Group 96 | . . 42 42 . . . . 31 93 31 31 . . 96 96 96 . . . . Highest-Rated Ally 96 | . . 31 31 . . . . 16 31 31 31 . . 96 96 96 . . . . Total Orders 6 | . . . . . . . . . 6 . . . . . . . . . . . STAY 2 | . . . . . . . . . 2 . . . . . . . . . . . FOLLOW 1 | . . . . . . . . . 1 . . . . . . . . . . . AID 3 | . . . . . . . . . 3 . . . . . . . . . . . Ally Attacks 54 | . . 2 . . . . . 6 1 8 2 . . 25 . 10 . . . . Total Damage 1307 | . . 21 . . . . . 74 21 147 22 . . 657 . 365 . . . . Kills 13 | . . 1 . . . . . 1 . 2 . . . 8 . 1 . . . . Allies Corrupted . | . . . . . . . . . . . . . . . . . . . . . Allies Melted . | . . . . . . . . . . . . . . . . . . . . . Intel | -11 -10 -10 -10 -9 -8 -8 -8 -8 -7 -6 -6 -6 -6 -5 -5 -5 -4 -4 -4 -4 ------- Run | Scr Mat Min Exi Min Mat Gar Mat Gar Fac Fac Low Low Dat Pro Fac DSF Fac Upp Upp War Robot Analysis Total 1 | . 1 . . . . . . . . . . . . . . . . . . . Derelict Logs Recovered 5 | . . 1 . 1 . . . . . . . . . 2 . . . 1 . . Drone Launches . | . . . . . . . . . . . . . . . . . . . . . Drone Recoveries . | . . . . . . . . . . . . . . . . . . . . . Exploration | -11 -10 -10 -10 -9 -8 -8 -8 -8 -7 -6 -6 -6 -6 -5 -5 -5 -4 -4 -4 -4 ------------- Run | Scr Mat Min Exi Min Mat Gar Mat Gar Fac Fac Low Low Dat Pro Fac DSF Fac Upp Upp War Turns Passed 21263 | 6 1443 2183 1284 915 999 1436 597 830 1775 871 1678 845 151 2195 9 442 1888 818 561 337 Spaces Moved 8583 | 1 649 843 529 350 346 544 259 357 643 318 560 439 80 1071 3 161 664 394 268 104 Core 4 | . . . . . . . . . . . 4 . . . . . . . . . Treads 3222 | 1 649 843 529 350 346 221 . . . . . . . . . 136 104 . . 43 Legs 5357 | . . . . . . 323 259 357 643 318 556 439 80 1071 3 25 560 394 268 61 Wheels . | . . . . . . . . . . . . . . . . . . . . . Hover . | . . . . . . . . . . . . . . . . . . . . . Flight . | . . . . . . . . . . . . . . . . . . . . . Fastest Speed 120 | 160 160 240 240 240 160 160 190 190 180 180 183 190 190 120 260 190 190 190 190 160 Average Speed 207 | 160 206 249 240 240 169 186 190 191 181 180 253 190 190 197 260 241 197 191 192 197 Slowest Speed 470 | 160 240 320 240 240 240 330 190 330 330 183 360 190 190 260 260 400 260 470 260 360 Overloaded Moves . | . . . . . . . . . . . . . . . . . . . . . Propulsion Burnouts . | . . . . . . . . . . . . . . . . . . . . . Robots Hopped . | . . . . . . . . . . . . . . . . . . . . . Cave-ins Triggered . | . . . . . . . . . . . . . . . . . . . . . Exploration Rate (%) 51 | 2 86 99 72 56 28 55 24 57 16 6 68 57 69 95 . 95 17 63 44 28 Regions Visited 20 Branch Regions 10 Pre-discovered Areas 4 | . . . 1 1 . . . . . . . 1 1 . . . . . . . Known Exits Taken 5 | . . . . . 1 . 1 . . 1 . . . . 1 . . . 1 . Unknown Exits Taken 12 | 1 1 1 1 1 . . . . 1 . 1 1 1 1 . . 1 1 . . Scrap Searched 11 | . . 1 . 1 . . . . . . 2 1 . 2 . . . 2 2 . Spaces Dug 6 | . . . . . . . . . 4 . . . . . . . . . 2 . Terrain Destroyed 174 | . 8 . . . 6 . . . 64 . 13 2 . 4 . 7 47 12 11 . Melee . | . . . . . . . . . . . . . . . . . . . . . Projectile 54 | . . . . . 1 . . . 8 . 13 2 . 4 . . 3 12 11 . AOE 120 | . 8 . . . 5 . . . 56 . . . . . . 7 44 . . . Terrain Rammed . | . . . . . . . . . . . . . . . . . . . . . Walls Destroyed . | . . . . . . . . . . . . . . . . . . . . . Machines Disabled . | . . . . . . . . . . . . . . . . . . . . . Actions | -11 -10 -10 -10 -9 -8 -8 -8 -8 -7 -6 -6 -6 -6 -5 -5 -5 -4 -4 -4 -4 --------- Run | Scr Mat Min Exi Min Mat Gar Mat Gar Fac Fac Low Low Dat Pro Fac DSF Fac Upp Upp War Total 11287 | 6 702 897 545 398 643 911 318 454 1195 607 760 445 79 1118 4 209 1097 431 292 176 Wait 1686 | . . 25 . 27 189 295 20 4 450 256 137 . . 1 . . 272 . . 10 Move 8566 | . 648 842 528 349 346 543 259 356 642 317 559 438 79 1070 3 160 663 393 267 104 Hop . | . . . . . . . . . . . . . . . . . . . . . Pick Up 101 | . 7 7 4 5 9 6 4 3 10 7 6 2 . 5 . 10 10 4 2 . Fast Attach 94 | . 5 2 6 . 8 7 . 1 15 4 7 1 . 4 . 10 14 3 1 6 Attach 68 | . 2 1 . . 8 4 . 3 3 5 9 1 . . 1 . 12 3 2 14 Detach 14 | . . 1 . . 1 . . . 2 1 2 . . . . 2 4 . . 1 Swap 79 | 2 . 2 . 1 6 4 2 14 6 3 . 1 . 7 . 3 23 2 . 3 Drop 124 | 4 7 2 7 2 12 6 3 9 16 7 2 . . 10 . 16 14 5 1 1 Fire 504 | . 33 14 . 14 62 36 27 33 51 5 38 2 . 21 . 8 84 20 19 37 Melee 6 | . . . . . . . . 6 . . . . . . . . . . . . Ram . | . . . . . . . . . . . . . . . . . . . . . Kick 6 | . . . . . . . 3 . . 2 . . . . . . 1 . . . Crush 3 | . . 1 . . 2 . . . . . . . . . . . . . . . Escape Stasis 35 | . . . . . . 10 . 25 . . . . . . . . . . . . Rewire 1 | . . . . . . . . . . . . . . . . . . 1 . . Trap . | . . . . . . . . . . . . . . . . . . . . . Miscellaneous . | . . . . . . . . . . . . . . . . . . . . . Route ------- -11/Scrapyard -10/Materials (discovered 5 exits: [*Mat x3] / [*Min x2]) -10/Mines (discovered 3 exits: [*Mat x2] / *Exi) -10/Exiles -9/Mines -8/Materials -8/Garrison (discovered 2 exits: *Mat x2) -8/Materials (discovered 2 exits: *Fac / Gar) -8/Garrison (discovered 2 exits: *Fac x2) -7/Factory -6/Factory -6/Lower Caves -6/Lower Caves -6/Data Miner -5/Proximity Caves -5/Factory -5/DSF -4/Factory (discovered 2 exits: Res / [*Upp]) -4/Upper Caves -4/Upper Caves -4/Warlord History --------- Turn | Location | Event 7 | -11/Scrapyard | Discovered new exit (range 0) 7 | -11/Scrapyard | Entered Materials 195 | -10/Materials | Discovered new exit (range 8) 306 | -10/Materials | Build established: Mutant 402 | -10/Materials | Discovered new exit (range 10) 646 | -10/Materials | Discovered new exit (range 11) 753 | -10/Materials | Discovered new exit (range 10) 933 | -10/Materials | Discovered new exit (range 9) 1066 | -10/Materials | Central database locked down 1450 | -10/Materials | Entered Mines 1746 | -10/Mines | Deemed a non-threat by the Exiles lab entrance 1746 | -10/Mines | Discovered new exit (range 5) 2179 | -10/Mines | Discovered new exit (range 7) 2339 | -10/Mines | Discovered new exit (range 15) 2534 | -10/Mines | Assembled infested the area 2539 | -10/Mines | Assisted by a Guerilla fighting off Assembled 2678 | -10/Mines | Joined a pair of Derelicts in attacking an 0b10 outpost 2905 | -10/Mines | Learned Materials terminal intel 3071 | -10/Mines | Build established: Scavenger-Mutant 3633 | -10/Mines | Entered Exiles 3633 | -10/Exiles | Accompanied by 2 allies 3663 | -10/Exiles | Led the pair of lost Derelicts to a safe place 3696 | -10/Exiles | Met 8R-AWN 3734 | -10/Exiles | Met EX-HEX 3830 | -10/Exiles | Met EX-DEC 3842 | -10/Exiles | Learned location of Zion (-7) 4302 | -10/Exiles | Met EX-BIN 4338 | -10/Exiles | Aligned with FarCom system 4340 | -10/Exiles | Given EX-Vault access code 4398 | -10/Exiles | Opened EX-Vault 4406 | -10/Exiles | Found Prototype Storage 4406 | -10/Exiles | Identified Superbattery 4412 | -10/Exiles | Found Prototype Device 4412 | -10/Exiles | Identified Chronowheel 4412 | -10/Exiles | Activated Chronowheel 4425 | -10/Exiles | Found Prototype Energy Gun 4425 | -10/Exiles | Identified AWS/Thermal 4488 | -10/Exiles | Warned to stay clear of 0b10 Research branches 4893 | -10/Exiles | Discovered new exit (range 11) 4917 | -10/Exiles | Left Exiles lab with Superbattery 4917 | -10/Exiles | Entered Mines 5801 | -9/Mines | Discovered new exit (range 7) 5832 | -9/Mines | Entered Materials 5832 | -8/Materials | Evolved 4 slots: Propulsion x1, Utility x3 5833 | -8/Materials | Loaded intel: 12 terminal locations 6320 | -8/Materials | Lost 3 parts (1u2w) 6831 | -8/Materials | Identified exit to Garrison 6831 | -8/Materials | Entered Garrison 6952 | -8/Garrison | Destroyed 7 combat bots 7306 | -8/Garrison | Triggered checkpoint 7360 | -8/Garrison | Discovered new exit (range 12) 7480 | -8/Garrison | Triggered checkpoint 7529 | -8/Garrison | Lost 4 parts (1p3n) 7606 | -8/Garrison | Lost 3 parts (1p2n) 7804 | -8/Garrison | Triggered checkpoint 7927 | -8/Garrison | Discovered new exit (range 8) 7952 | -8/Garrison | Installed Relay Interface Framework 8026 | -8/Garrison | Garrison Relay disabled 8267 | -8/Garrison | Entered Materials 8676 | -8/Materials | Discovered new exit (range 11) 8729 | -8/Materials | Garrison activated, responded to threat 8864 | -8/Materials | Identified exit to Garrison 8864 | -8/Materials | Entered Garrison 8914 | -8/Garrison | Triggered checkpoint 8937 | -8/Garrison | Garrison Relay disabled 8992 | -8/Garrison | Triggered checkpoint 9025 | -8/Garrison | Core integrity fell below 50% 9124 | -8/Garrison | Triggered checkpoint 9196 | -8/Garrison | Discovered new exit (range 9) 9352 | -8/Garrison | Discovered new exit (range 8) 9381 | -8/Garrison | Expanded RIF knowledge: Command Fork 9502 | -8/Garrison | Triggered checkpoint 9547 | -8/Garrison | Garrison Relay disabled 9694 | -8/Garrison | Entered Factory 9694 | -7/Factory | Evolved 2 slots: Utility x2 9854 | -7/Factory | Build established: Bothacker-Mutant 10109 | -7/Factory | Lost 3 parts (2u1w) 10328 | -7/Factory | Fabricated Adv. Cryofiber Web (x1) 10368 | -7/Factory | Build established: Scavenger-Mutant 10421 | -7/Factory | System corruption reached 10% 10689 | -7/Factory | Build established: Mutant 10749 | -7/Factory | P-60 Hacker assimilated allied *W177-SM1TH 11260 | -7/Factory | Cargo convoy interrupted 11349 | -7/Factory | Allied Derelicts emerged from ambush trap array 11355 | -7/Factory | Discovered new exit (range 16) 11469 | -7/Factory | Entered another Factory area 11469 | -6/Factory | Accompanied by 1 ally 11469 | -6/Factory | Evolved 2 slots: Utility x2 11517 | -6/Factory | Discovered new exit (range 16) 11549 | -6/Factory | Build established: Skirmisher 12254 | -6/Factory | Identified exit to Lower Caves 12340 | -6/Factory | Entered Lower Caves 12340 | -6/Lower Caves | Accompanied by 1 ally 12342 | -6/Lower Caves | Spotted B-75 Beast 12370 | -6/Lower Caves | Destroyed B-75 Beast 12552 | -6/Lower Caves | Attracted the attention of an 0b10 checkpoint 12593 | -6/Lower Caves | Core integrity fell below 50% 12623 | -6/Lower Caves | Lost 8 parts (1p1n4u2w) 12642 | -6/Lower Caves | Build established: Mutant 12947 | -6/Lower Caves | Build established: Scavenger-Mutant 13904 | -6/Lower Caves | Discovered new exit (range 16) 14018 | -6/Lower Caves | Entered another Lower Caves area 14113 | -6/Lower Caves | Learned 8 Research zone layouts 14113 | -6/Lower Caves | Learned Factory emergency access door positions 14113 | -6/Lower Caves | Learned Factory security intel 14831 | -6/Lower Caves | Discovered new exit (range 13) 14863 | -6/Lower Caves | Entered Data Miner 14863 | -6/Data Miner | Discovered new exit (range 6) 14900 | -6/Data Miner | Met Data Miner 14939 | -6/Data Miner | Acquired the access code to Warlord's prototype stash 14939 | -6/Data Miner | Learned location of Section 7 (-2) 14970 | -6/Data Miner | Received God Mode back door access code from Data Miner 15014 | -6/Data Miner | Entered Proximity Caves 15098 | -5/Proximity Caves | Escorted by Enhanced Grunt 15098 | -5/Proximity Caves | Attracted the attention of an 0b10 checkpoint 15245 | -5/Proximity Caves | Learned Factory security intel 16706 | -5/Proximity Caves | Build established: Mutant 16819 | -5/Proximity Caves | Spotted B-75 Beast 16832 | -5/Proximity Caves | Destroyed B-75 Beast 17128 | -5/Proximity Caves | Discovered new exit (range 4) 17132 | -5/Proximity Caves | Build established: Derelict-Mutant 17209 | -5/Proximity Caves | Entered Factory 17209 | -5/Factory | Accompanied by 1 ally 17209 | -5/Factory | Evolved 2 slots: Power x1, Utility x1 17218 | -5/Factory | Identified exit to DSF 17218 | -5/Factory | Entered DSF 17218 | -5/DSF | Accompanied by 1 ally 17252 | -5/DSF | Additional patrols routed to DSF 17423 | -5/DSF | Sterilization system engaged 17443 | -5/DSF | Ambient heat levels rising (+10) 17458 | -5/DSF | Ambient heat levels rising (+10) 17473 | -5/DSF | Ambient heat levels rising (+10) 17475 | -5/DSF | Discovered new exit (range 16) 17488 | -5/DSF | Ambient heat levels rising (+10) 17503 | -5/DSF | Ambient heat levels rising (+10) 17518 | -5/DSF | Ambient heat levels rising (+10) 17533 | -5/DSF | Ambient heat levels rising (+10) 17548 | -5/DSF | Ambient heat levels rising (+10) 17549 | -5/DSF | Build established: Mutant 17563 | -5/DSF | Ambient heat levels rising (+10) 17578 | -5/DSF | Ambient heat levels rising (+10) 17593 | -5/DSF | Ambient heat levels rising (+10) 17608 | -5/DSF | Ambient heat levels rising (+10) 17623 | -5/DSF | Ambient heat levels rising (+10) 17638 | -5/DSF | Ambient heat levels rising (+10) 17653 | -5/DSF | Ambient heat levels rising (+10) 17660 | -5/DSF | Entered Factory 17660 | -4/Factory | Evolved 2 slots: Utility x1, Weapon x1 17661 | -4/Factory | Identified exit to Research 17910 | -4/Factory | System corruption reached 10% 18030 | -4/Factory | System corruption reached 30% 18199 | -4/Factory | Build established: Scavenger-Gunner 18507 | -4/Factory | Destroyed 7 combat bots 19467 | -4/Factory | Discovered new exit (range 16) 19548 | -4/Factory | Entered Upper Caves 20009 | -4/Upper Caves | Learned 4 Research zone layouts 20265 | -4/Upper Caves | Discovered new exit (range 13) 20366 | -4/Upper Caves | Entered another Upper Caves area 20367 | -4/Upper Caves | Identified exit to Warlord 20440 | -4/Upper Caves | Attracted the attention of an 0b10 checkpoint 20927 | -4/Upper Caves | Entered Warlord 20996 | -4/Warlord | System corruption cleaned by Quarantine Array 21003 | -4/Warlord | RIF detected upon attempting to enter Warlord's base 21003 | -4/Warlord | Attacked by Warlord forces 21024 | -4/Warlord | Spotted L5-JR5(B) 21024 | -4/Warlord | Spotted R7-GRF(B) 21051 | -4/Warlord | Core integrity fell below 50% 21089 | -4/Warlord | Core integrity fell below 20% 21092 | -4/Warlord | Destroyed L5-JR5(B) 21107 | -4/Warlord | Destroyed R7-GRF(B) 21129 | -4/Warlord | Lost 18 parts (2p3n5u8w) 21169 | -4/Warlord | Warlord's base attacked by MAIN.C 21254 | -4/Warlord | Lost 10 parts (1p1n4u4w) 21264 | -4/Warlord | Destroyed by O8-CKB(g) with Thermoblaster Last Messages --------------- 21209_ Acquired 8 matter. 21209_ Tesla Rifle destroyed. 21211_ Lrn. Proton Cannon destroyed. 21213_ Adv. Energy Well destroyed. 21215_ Lrn. Proton Cannon destroyed. 21218_ Acquired 93 matter. 21222_ Spk. Medium Treads destroyed. 21222_ Reflective Plating destroyed. 21223_ Superbattery destroyed. 21225_ System corrupted: Matter fused (-6). 21239_ 7L-V6N(g) suffers critical hit (Burn). 21239_ 7L-V6N(g) overheating. 21240_ 7L-V6N(g) critical meltdown. 21244_ System corrupted: Matter fused (-7). 21259_ ANNOUNCEMENT: MAIN.C reinforcements approaching through caves, arriving soon. 21260_ System corrupted: Heat flow error (+295). 21260_ Reflective Plating destroyed. 21262_ Storage disabled. 21263_ Spk. Medium Treads destroyed. Map ----- +----------------------------------------------------+ | | | | | | | | | | | | | | | | | | | | | | | | | | | | | | | | | | | | | | | ??????????????###????????????????????????????????? | | ??????????????# ??????????????????????????????? | | ??????????????# ????????????????????????????? | | ??????????????# ?######????????????????????? | | ??????????????# # ##########???????????? | | ???????????????? !! g% #???????????? | | ???????????????????????# @ #???????????? | | ???????????????????????# ;####????????????? | | ???????????????????????# ^ " g ;#???????????????? | | ???????????????????????# "" ##???????????????? | | ??????????????##+#####+# Y"""gg#????????????????? | | ??????????????# """ ##???????????????? | | ????????????????? g """ #???????????????? | | ???????????????????? # ##gYM #???????????????? | | ??????????????????? ?##?# g #???????????????? | | ?????????????????? ????##Y #???????????????? | | ????????????????? ???###";########???????????????? | | ?????????????????????# #?????????????????? | | ?????????????????????# #?????????????????? | | ?????????????????????# #?????????????????? | | ?????????????????????# #?????????????????? | | ???????????????#?????# #?????????????????? | | ??????????????## ????# ]! #?????????????????? | | ??????????????# ??# =%! #?????????????????? | | ??????????###### ?# & #?????????????????? | | ???????? ## #######?????????????????? | | ???????? ##??????????????????? | | ???????? "#?????""???????????? | | ???????? "#????#""#??????????? | | ?????????####### ##### "##???#""#??????????? | | ???????????????######?##"#= [ "#####""#####??????? | +----------------------------------------------------+ Best States ------------- Heat Dissipation 62 Coolant Potential 200 Energy Generation 44 Energy Capacity 2530 Matter Stores 300 Matter Capacity 300 Sight Range 18 Robot Scan Range 15 Terrain Scan Range 16 Terrain Scan Density 210 Power Amplification 30 Additional Mass Support 9 Base Temperature (-) 200 EM Shielding 3 Armor Coverage 900 Resistance: KI 20 Resistance: TH 35 Resistance: EX 20 Resistance: EM 20 Resistance: I 20 Resistance: S 20 Resistance: P 20 Core Shielding 20 Weapon Shielding 33 Weapon Cycling 30 Evasion (%) 50 Targeting Accuracy 10 Target Analysis 9 Recoil Reduction 3 Matter Filtering 30 Particle Charging 20 Salvage Targeting 4 Offensive Hacking 20 Relay Coupler Types 2 Relay Coupler Value 45 Authchip Count 1 Item Schematics ----------------- Lgt. Antimatter Reactor | -6/Data Miner | Free HERF Cannon | -6/Data Miner | Free Adv. Actuator Array | -6/Data Miner | Free Field Propulsion Array | -6/Data Miner | Free Kinetic Spear | -6/Data Miner | Free Imp. Energy Well | -6/Data Miner | Free Cld. Gravmag System | -6/Data Miner | Free Lgt. Regenerative Plating | -6/Data Miner | Free Combat Drone Bay | -6/Data Miner | Free Robot Schematics ------------------ S-27 Virus | -6/Data Miner | Free B-60 Warrior | -6/Data Miner | Free R-10 Processor | -6/Data Miner | Free A-15 Conveyor | -6/Data Miner | Free Fabricated ------------ Adv. Cryofiber Web | x1 | -7/Factory | Preloaded Alien Tech Used ----------------- None Achievements -------------- None Challenges ------------ None Game ------ Seed BoreRecyclingPod Manual? 0 Play Time 02:37:17 Cumulative 803.0 hours Start 2022.03.27 @ 21:36:27 End 2022.03.28 @ 01:46:28 Sessions 1 Manual Loads 0 Difficulty Adventurer Special Mode None Game No. 153 Rogue 1 Adventurer 152 Explorer 0 Win Type - Total 3 Types 3/0/0/0/0/0/0/0/0 Lore% 65 Gallery% 76 Achievement% 61 Wizard Run 0 Options --------- ASCII 0 Keyboard 0 Movement Mouse Keybinds 0 Fullscreen 0 Font 16/Smallcaps Map View 76x50 Tactical HUD 1 Map Filters NONE Filters NONE Steam 1 RUN: 8d090114-ec53-479e-9ba5-3870c2a43112